fUST/lending_fUST_20251001
["ID","MTS","AMOUNT","RATE_DAILY","PERIOD"]
[388698685,1759321837945,-500.0,0.00019452,2]
[388698686,1759321837956,-604.04,0.00019452,2]
[388698687,1759321837965,-813.89,0.00019452,2]
[388698688,1759321837974,-500.0,0.00019452,2]
[388698689,1759321837984,-1919.86,0.00019452,2]
[388698690,1759321837993,-500.0,0.00019452,2]
[388698692,1759321838002,-2845.23,0.00019452,2]
[388698693,1759321838012,-520.36,0.00019452,2]
[388698694,1759321838022,-594.37,0.00019452,2]
[388698695,1759321838032,-1000.0,0.00019452,2]
[388698696,1759321838042,-500.0,0.00019452,2]
[388698697,1759321838051,-414.77906204,0.00019452,2]
[388698698,1759321838061,-3053.05,0.00019452,2]
[388698699,1759321838071,-735.28,0.00019452,2]
[388698700,1759321838080,-500.0,0.00019452,2]
[388698701,1759321838090,-671.94,0.00019452,2]
[388698702,1759321838099,-1314.73,0.00019452,2]
[388698703,1759321838108,-500.0,0.00019452,2]
[388698704,1759321838118,-599.23,0.00019452,2]
[388698705,1759321838127,-666.86,0.00019452,2]
[388698706,1759321838137,-500.0,0.00019452,2]
[388698707,1759321838147,-2778.08,0.00019452,2]
[388698708,1759321838156,-705.59,0.00019452,2]
[388698709,1759321838166,-500.0,0.00019452,2]
[388698710,1759321838175,-500.0,0.00019452,2]
[388698711,1759321838185,-741.42,0.00019452,2]
[388698712,1759321838195,-845.2,0.00019452,2]
[388698713,1759321838204,-500.0,0.00019452,2]
[388698714,1759321838214,-1126.69,0.00019452,2]
[388698715,1759321838223,-3581.98,0.00019452,2]
[388698716,1759321838234,-1516.75,0.00019452,2]
[388698717,1759321838244,-733.07,0.00019452,2]
[388698718,1759321838253,-465.3907315,0.00019452,2]
[388698719,1759321838262,-9167.63,0.00019452,2]
[388698720,1759321838272,-500.0,0.00019452,2]
[388698721,1759321838281,-500.0,0.00019452,2]
[388698722,1759321838291,-541.2,0.00019452,2]
[388698723,1759321838300,-500.0,0.00019452,2]
[388698724,1759321838309,-1344.06,0.00019452,2]
[388698725,1759321838319,-721.24,0.00019452,2]
[388698726,1759321838328,-462.59714819,0.00019452,2]
[388698727,1759321838337,-1694.29,0.00019452,2]
[388698728,1759321838347,-1030.61,0.00019452,2]
[388698729,1759321838356,-1091.43,0.00019452,2]
[388698730,1759321838366,-1144.06,0.00019452,2]
[388698731,1759321838375,-500.0,0.00019452,2]
[388698732,1759321838385,-1335.93,0.00019452,2]
[388698733,1759321838395,-500.0,0.00019452,2]
[388698734,1759321838404,-500.0,0.00019452,2]
[388698735,1759321838413,-1839.37,0.00019452,2]
[388698736,1759321838423,-1459.47,0.00019452,2]
[388698737,1759321838432,-836.98,0.00019452,2]
[388698738,1759321838442,-2105.57,0.00019452,2]
[388698739,1759321838451,-638.95,0.00019452,2]
[388698740,1759321838463,-500.0,0.00019452,2]
[388698741,1759321838473,-1315.4,0.00019452,2]
[388698742,1759321838483,-878.29,0.00019452,2]
[388698743,1759321838493,-607.32735684,0.00019452,2]
[388698744,1759321838502,-500.0,0.00019452,2]
[388698745,1759321838512,-1595.24,0.00019452,2]
[388698746,1759321838522,-1473.32,0.00019452,2]
[388698747,1759321838531,-500.0,0.00019452,2]
[388698748,1759321838578,-1220.82,0.00019452,2]
[388698749,1759321838587,-1324.01,0.00019452,2]
[388698750,1759321838597,-912.25,0.00019452,2]
[388698751,1759321838606,-500.0,0.00019452,2]
[388698752,1759321838616,-500.0,0.00019452,2]
[388698753,1759321838625,-500.0,0.00019452,2]
[388698754,1759321838635,-999.89,0.00019452,2]
[388698755,1759321838644,-1163.38,0.00019452,2]
[388698756,1759321838654,-500.0,0.00019452,2]
[388698757,1759321838663,-500.0,0.00019452,2]
[388698758,1759321838672,-2709.32,0.00019452,2]
[388698759,1759321838681,-1580.81,0.00019452,2]
[388698760,1759321838691,-500.0,0.00019452,2]
[388698761,1759321838701,-500.0,0.00019452,2]
[388698762,1759321838711,-577.98,0.00019452,2]
[388698763,1759321838720,-500.0,0.00019452,2]
[388698764,1759321838730,-1438.98,0.00019452,2]
[388698765,1759321838739,-500.0,0.00019452,2]
[388698766,1759321838749,-500.0,0.00019452,2]
[388698767,1759321838758,-3424.63,0.00019452,2]
[388698768,1759321838768,-1244.25,0.00019452,2]
[388698769,1759321838778,-500.0,0.00019452,2]
[388698770,1759321838788,-500.0,0.00019452,2]
[388698771,1759321838797,-500.0,0.00019452,2]
[388698772,1759321838807,-1550.16,0.00019452,2]
[388698773,1759321838817,-500.0,0.00019452,2]
[388698774,1759321838827,-500.0,0.00019452,2]
[388698775,1759321838836,-862.91,0.00019452,2]
[388698776,1759321838851,-1140.21,0.00019452,2]
[388698777,1759321838861,-1371.74,0.00019452,2]
[388698778,1759321838871,-872.96,0.00019452,2]
[388698779,1759321838881,-4231.65,0.00019452,2]
[388698780,1759321838891,-645.5,0.00019452,2]
[388698781,1759321838901,-500.0,0.00019452,2]
[388698782,1759321838911,-1232.6,0.00019452,2]
[388698783,1759321838922,-500.0,0.00019452,2]
[388698784,1759321838933,-1223.3,0.00019452,2]
[388698785,1759321838943,-590.09,0.00019452,2]
[388698786,1759321838953,-1447.95,0.00019452,2]
[388698787,1759321838963,-798.59,0.00019452,2]
[388698788,1759321838972,-306.09321891,0.00019452,2]
[388698789,1759321838985,-1782.85,0.00019452,2]
[388698790,1759321838995,-500.0,0.00019452,2]
[388698791,1759321839005,-1838.64,0.00019452,2]
[388698792,1759321839014,-1516.56,0.00019452,2]
[388698793,1759321839025,-893.08,0.00019452,2]
[388698794,1759321839036,-500.0,0.00019452,2]
[388698795,1759321839045,-500.0,0.00019452,2]
[388698796,1759321839056,-500.0,0.00019452,2]
[388698797,1759321839066,-630.1,0.00019452,2]
[388698798,1759321839075,-480.0,0.00019452,2]
[388698799,1759321839085,-609.29,0.00019452,2]
[388698800,1759321839094,-2743.35,0.00019452,2]
[388698801,1759321839104,-1057.58,0.00019452,2]
[388698802,1759321839114,-2029.61,0.00019452,2]
[388698803,1759321839125,-1681.29,0.00019452,2]
[388698804,1759321839135,-500.0,0.00019452,2]
[388698805,1759321839144,-1605.61,0.00019452,2]
[388698806,1759321839154,-500.0,0.00019452,2]
[388698807,1759321839163,-500.0,0.00019452,2]
[388698808,1759321839173,-3964.1,0.00019452,2]
[388698809,1759321839183,-1745.65,0.00019452,2]
[388698810,1759321839193,-500.0,0.00019452,2]
[388698811,1759321839203,-155.8260691,0.00019473,2]
[388698812,1759321839212,-500.0,0.00019473,2]
[388698813,1759321839223,-500.0,0.00019473,2]
[388698814,1759321839232,-500.0,0.00019473,2]
[388698815,1759321839242,-500.0,0.00019473,2]
[388698816,1759321839253,-500.0,0.00019473,2]
[388698817,1759321839262,-500.0,0.00019473,2]
[388698818,1759321839272,-500.0,0.00019473,2]
[388698819,1759321839283,-500.0,0.00019473,2]
[388698820,1759321839293,-500.0,0.00019473,2]
[388698821,1759321839303,-500.0,0.00019473,2]
[388698822,1759321839312,-500.0,0.00019473,2]
[388698823,1759321839326,-500.0,0.00019473,2]
[388698824,1759321839335,-500.0,0.00019473,2]
[388698825,1759321839344,-500.0,0.00019473,2]
[388698826,1759321839354,-500.0,0.00019473,2]
[388698827,1759321839363,-500.0,0.00019473,2]
[388698828,1759321839372,-500.0,0.00019473,2]
[388698829,1759321839383,-500.0,0.00019473,2]
[388698830,1759321839393,-500.0,0.00019473,2]
[388698831,1759321839403,-500.0,0.00019473,2]
[388698832,1759321839414,-500.0,0.00019473,2]
[388698833,1759321839424,-500.0,0.00019473,2]
[388698834,1759321839434,-318.02417524,0.00019473,2]
[388698835,1759321839444,-500.0,0.00019473,2]
[388698836,1759321839453,-500.0,0.00019473,2]
[388698837,1759321839462,-500.0,0.00019473,2]
[388698838,1759321839471,-500.0,0.00019473,2]
[388698839,1759321839481,-500.0,0.00019473,2]
[388698840,1759321839493,-500.0,0.00019473,2]
[388698842,1759321839502,-500.0,0.00019577,2]
[388698843,1759321839511,-310.0,0.0001964,2]
[388698844,1759321839519,-500.0,0.00019678,2]
[388698845,1759321839528,-151.0,0.00019678,2]
[388698846,1759321839537,-500.0,0.00019678,2]
[388698847,1759321839547,-151.0,0.00019678,2]
[388698849,1759321839556,-253.15011158,0.00019678,2]
[388698850,1759321839565,-151.0,0.00019678,2]
[388698852,1759321839574,-151.0,0.00019678,2]
[388698854,1759321839583,-1000.0,0.00019721,2]
[388698855,1759321839592,-866.33195918,0.00019721,2]
[388698857,1759321839602,-1000.0,0.00019721,2]
[388698858,1759321839611,-1000.0,0.00019721,2]
[388698859,1759321839620,-1000.0,0.00019721,2]
[388698860,1759321839629,-1000.0,0.00019721,2]
[388698861,1759321839639,-865.78137718,0.00019721,2]
[388698862,1759321839648,-1000.0,0.00019721,2]
[388698863,1759321839657,-1000.0,0.00019721,2]
[388698864,1759321839666,-1000.0,0.00019721,2]
[388698865,1759321839676,-1000.0,0.00019721,2]
[388698867,1759321839686,-920.0,0.00019723,2]
[388698869,1759321839696,-151.0,0.00019723,2]
[388698871,1759321839706,-199.31845379,0.00019724,2]
[388698872,1759321839716,-198.0,0.00019724,2]
[388698874,1759321839725,-151.0,0.00019724,2]
[388698876,1759321839734,-201.2263473,0.00019725,2]
[388698878,1759321839744,-198.0,0.00019725,2]
[388698879,1759321839753,-500.0,0.00019726,2]
[388698880,1759321839762,-575.41,0.00019726,2]
[388698882,1759321839772,-520.0,0.00019726,3]
[388698884,1759321839781,-732.69,0.00019726,2]
[388698886,1759321839790,-315.3242162,0.00019726,2]
[388698888,1759321839799,-500.0,0.00019726,2]
[388698889,1759321839808,-502.46,0.00019726,2]
[388698891,1759321839817,-640.47909549,0.00019726,2]
[388698892,1759321839830,-500.0,0.00019726,2]
[388698893,1759321839839,-500.0,0.00019726,2]
[388698894,1759321839848,-500.0,0.00019726,2]
[388698895,1759321839857,-500.0,0.00019726,2]
[388698896,1759321839867,-500.0,0.00019726,2]
[388698897,1759321839876,-500.0,0.00019726,2]
[388698898,1759321839885,-500.0,0.00019726,2]
[388698899,1759321839894,-500.0,0.00019726,2]
[388698900,1759321839905,-500.0,0.00019726,2]
[388698901,1759321839915,-500.0,0.00019726,2]
[388698902,1759321839924,-500.0,0.00019726,2]
[388698903,1759321839934,-500.0,0.00019726,2]
[388698904,1759321839943,-540.44,0.00019726,2]
[388698905,1759321839952,-500.0,0.00019726,2]
[388698906,1759321839961,-500.0,0.00019726,2]
[388698907,1759321839970,-1093.76,0.00019726,2]
[388698908,1759321839980,-500.0,0.00019726,2]
[388698909,1759321839989,-500.0,0.00019726,2]
[388698910,1759321839998,-500.0,0.00019726,2]
[388698911,1759321840008,-653.65,0.00019726,2]
[388698912,1759321840016,-500.0,0.00019726,2]
[388698913,1759321840028,-500.0,0.00019726,2]
[388698914,1759321840037,-775.98,0.00019726,2]
[388698915,1759321840047,-500.0,0.00019726,2]
[388698916,1759321840056,-726.09,0.00019726,2]
[388698917,1759321840065,-580.53,0.00019726,2]
[388698918,1759321840074,-500.0,0.00019726,2]
[388698919,1759321840084,-500.0,0.00019726,2]
[388698920,1759321840093,-500.0,0.00019726,2]
[388698921,1759321840103,-500.0,0.00019726,2]
[388698922,1759321840112,-769.46,0.00019726,2]
[388698923,1759321840121,-1943.96,0.00019726,2]
[388698924,1759321840130,-500.0,0.00019726,2]
[388698925,1759321840139,-500.0,0.00019726,2]
[388698926,1759321840147,-612.02,0.00019726,2]
[388698927,1759321840156,-969.0,0.00019726,2]
[388698928,1759321840166,-763.2,0.00019726,2]
[388698929,1759321840175,-500.0,0.00019726,2]
[388698930,1759321840184,-662.1,0.00019726,2]
[388698931,1759321840193,-500.0,0.00019726,2]
[388698932,1759321840202,-500.0,0.00019726,2]
[388698933,1759321840211,-1161.75,0.00019726,2]
[388698934,1759321840220,-1820.64,0.00019726,2]
[388698935,1759321840229,-711.47,0.00019726,2]
[388698936,1759321840237,-688.73,0.00019726,2]
[388698937,1759321840246,-1119.87,0.00019726,2]
[388698938,1759321840257,-695.1,0.00019726,2]
[388698939,1759321840266,-557.33,0.00019726,2]
[388698940,1759321840277,-2140.28,0.00019726,2]
[388698941,1759321840286,-914.94,0.00019726,2]
[388698942,1759321840295,-500.0,0.00019726,2]
[388698943,1759321840305,-716.76,0.00019726,2]
[388698944,1759321840313,-500.0,0.00019726,2]
[388698945,1759321840322,-500.0,0.00019726,2]
[388698946,1759321840332,-500.0,0.00019726,2]
[388698947,1759321840344,-570.26371985,0.00019726,2]
[388698948,1759321840353,-500.0,0.00019726,2]
[388698949,1759321840362,-1047.55,0.00019726,2]
[388698950,1759321840372,-500.0,0.00019726,2]
[388698951,1759321840382,-500.0,0.00019726,2]
[388698952,1759321840391,-2079.09,0.00019726,2]
[388698953,1759321840401,-816.71,0.00019726,2]
[388698954,1759321840410,-500.0,0.00019726,2]
[388698955,1759321840419,-500.0,0.00019726,2]
[388698956,1759321840428,-500.0,0.00019726,2]
[388698957,1759321840437,-1092.96,0.00019726,2]
[388698958,1759321840448,-500.0,0.00019726,2]
[388698959,1759321840457,-500.0,0.00019726,2]
[388698960,1759321840466,-758.83,0.00019726,2]
[388698961,1759321840476,-583.79,0.00019726,2]
[388698962,1759321840485,-500.0,0.00019726,2]
[388698963,1759321840494,-636.07,0.00019726,2]
[388698964,1759321840504,-500.0,0.00019726,2]
[388698965,1759321840513,-500.0,0.00019726,2]
[388698966,1759321840524,-404.47503162,0.00019726,2]
[388698967,1759321840533,-500.0,0.00019726,2]
[388698968,1759321840543,-500.0,0.00019726,2]
[388698969,1759321840552,-214.33096275,0.00019726,2]
[388698970,1759321840562,-500.0,0.00019726,2]
[388698971,1759321840572,-2835.74,0.00019726,2]
[388698972,1759321840581,-597.08,0.00019726,2]
[388698973,1759321840590,-500.0,0.00019726,2]
[388698974,1759321840599,-500.0,0.00019726,2]
[388698975,1759321840608,-604.04,0.00019726,2]
[388698976,1759321840618,-813.89,0.00019726,2]
[388698977,1759321840627,-500.0,0.00019726,2]
[388698978,1759321840637,-1919.86,0.00019726,2]
[388698979,1759321840647,-500.0,0.00019726,2]
[388698980,1759321840656,-2845.23,0.00019726,2]
[388698981,1759321840666,-520.36,0.00019726,2]
[388698982,1759321840675,-594.37,0.00019726,2]
[388698983,1759321840684,-500.0,0.00019726,2]
[388698984,1759321840694,-3053.05,0.00019726,2]
[388698985,1759321840704,-735.28,0.00019726,2]
[388698986,1759321840713,-500.0,0.00019726,2]
[388698987,1759321840723,-671.94,0.00019726,2]
[388698988,1759321840732,-1314.73,0.00019726,2]
[388698989,1759321840742,-500.0,0.00019726,2]
[388698990,1759321840751,-599.23,0.00019726,2]
[388698991,1759321840761,-666.86,0.00019726,2]
[388698992,1759321840773,-500.0,0.00019726,2]
[388698993,1759321840782,-2778.08,0.00019726,2]
[388698994,1759321840792,-705.59,0.00019726,2]
[388698995,1759321840801,-500.0,0.00019726,2]
[388698996,1759321840811,-500.0,0.00019726,2]
[388698997,1759321840821,-741.42,0.00019726,2]
[388698998,1759321840832,-845.2,0.00019726,2]
[388698999,1759321840845,-500.0,0.00019726,2]
[388699000,1759321840855,-1126.69,0.00019726,2]
[388699001,1759321840865,-3581.98,0.00019726,2]
[388699002,1759321840875,-1516.75,0.00019726,2]
[388699003,1759321840887,-733.07,0.00019726,2]
[388699004,1759321840896,-9167.63,0.00019726,2]
[388699005,1759321840906,-500.0,0.00019726,2]
[388699006,1759321840916,-500.0,0.00019726,2]
[388699007,1759321840926,-541.2,0.00019726,2]
[388699008,1759321840936,-500.0,0.00019726,2]
[388699009,1759321840946,-1344.06,0.00019726,2]
[388699010,1759321840956,-721.24,0.00019726,2]
[388699011,1759321840965,-1694.29,0.00019726,2]
[388699012,1759321840974,-1030.61,0.00019726,2]
[388699013,1759321840984,-1091.43,0.00019726,2]
[388699014,1759321840994,-1144.06,0.00019726,2]
[388699015,1759321841003,-436.06504967,0.00019726,2]
[388699016,1759321841013,-1335.93,0.00019726,2]
[388699017,1759321841025,-500.0,0.00019726,2]
[388699018,1759321841036,-500.0,0.00019726,2]
[388699019,1759321841045,-1839.37,0.00019726,2]
[388699020,1759321841055,-1459.47,0.00019726,2]
[388699021,1759321841064,-836.98,0.00019726,2]
[388699022,1759321841073,-2105.57,0.00019726,2]
[388699023,1759321841083,-638.95,0.00019726,2]
[388699024,1759321841092,-500.0,0.00019726,2]
[388699025,1759321841101,-1315.4,0.00019726,2]
[388699026,1759321841111,-878.29,0.00019726,2]
[388699027,1759321841121,-500.0,0.00019726,2]
[388699028,1759321841130,-1595.24,0.00019726,2]
[388699029,1759321841139,-1473.32,0.00019726,2]
[388699030,1759321841148,-500.0,0.00019726,2]
[388699031,1759321841157,-1220.82,0.00019726,2]
[388699032,1759321841167,-1324.01,0.00019726,2]
[388699033,1759321841176,-912.25,0.00019726,2]
[388699034,1759321841186,-500.0,0.00019726,2]
[388699035,1759321841196,-500.0,0.00019726,2]
[388699036,1759321841205,-500.0,0.00019726,2]
[388699037,1759321841215,-999.89,0.00019726,2]
[388699038,1759321841224,-1163.38,0.00019726,2]
[388699039,1759321841233,-500.0,0.00019726,2]
[388699040,1759321841243,-500.0,0.00019726,2]
[388699041,1759321841252,-2709.32,0.00019726,2]
[388699042,1759321841261,-1580.81,0.00019726,2]
[388699043,1759321841272,-500.0,0.00019726,2]
[388699044,1759321841281,-500.0,0.00019726,2]
[388699045,1759321841291,-577.98,0.00019726,2]
[388699046,1759321841300,-500.0,0.00019726,2]
[388699047,1759321841310,-1438.98,0.00019726,2]
[388699048,1759321841319,-500.0,0.00019726,2]
[388699049,1759321841328,-500.0,0.00019726,2]
[388699050,1759321841338,-3424.63,0.00019726,2]
[388699051,1759321841347,-1244.25,0.00019726,2]
[388699052,1759321841358,-500.0,0.00019726,2]
[388699053,1759321841367,-500.0,0.00019726,2]
[388699054,1759321841377,-640.84,0.00019726,2]
[388699055,1759321841387,-1550.16,0.00019726,2]
[388699056,1759321841396,-500.0,0.00019726,2]
[388699057,1759321841406,-500.0,0.00019726,2]
[388699058,1759321841415,-862.91,0.00019726,2]
[388699059,1759321841425,-1140.21,0.00019726,2]
[388699060,1759321841435,-1371.74,0.00019726,2]
[388699061,1759321841446,-872.96,0.00019726,2]
[388699062,1759321841464,-4231.65,0.00019726,2]
[388699063,1759321841477,-645.5,0.00019726,2]
[388699064,1759321841488,-500.0,0.00019726,2]
[388699065,1759321841498,-1232.6,0.00019726,2]
[388699066,1759321841508,-500.0,0.00019726,2]
[388699067,1759321841518,-1223.3,0.00019726,2]
[388699068,1759321841529,-590.09,0.00019726,2]
[388699069,1759321841540,-1447.95,0.00019726,2]
[388699070,1759321841550,-798.59,0.00019726,2]
[388699071,1759321841560,-1782.85,0.00019726,2]
[388699072,1759321841571,-500.0,0.00019726,2]
[388699073,1759321841583,-1838.64,0.00019726,2]
[388699074,1759321841593,-1516.56,0.00019726,2]
[388699075,1759321841604,-893.08,0.00019726,2]
[388699076,1759321841614,-500.0,0.00019726,2]
[388699077,1759321841625,-500.0,0.00019726,2]
[388699078,1759321841636,-500.0,0.00019726,2]
[388699079,1759321841645,-630.1,0.00019726,2]
[388699080,1759321841656,-609.29,0.00019726,2]
[388699081,1759321841666,-2743.35,0.00019726,2]
[388699082,1759321841677,-1057.58,0.00019726,2]
[388699083,1759321841687,-2029.61,0.00019726,2]
[388699084,1759321841698,-1681.29,0.00019726,2]
[388699085,1759321841708,-305.17234109,0.00019726,2]
[388699086,1759321841718,-1605.61,0.00019726,2]
[388699087,1759321841728,-500.0,0.00019726,2]
[388699088,1759321841739,-544.79711546,0.00019726,2]
[388699089,1759321841749,-3964.1,0.00019726,2]
[388699090,1759321841759,-1745.65,0.00019726,2]
[388699091,1759321841771,-500.0,0.00019726,2]
[388699092,1759321841781,-1365.85926184,0.00019763,2]
[388699093,1759321841791,-500.0,0.00019851,2]
[388699094,1759321841801,-1435.40975359,0.00019879,2]
[388699095,1759321841812,-500.0,0.00019973,2]
[388699096,1759321841822,-500.0,0.00019973,2]
[388699097,1759321841839,-502.37760947,0.00019973,2]
[388699098,1759321841848,-500.0,0.00019973,2]
[388699099,1759321841858,-500.0,0.00019973,2]
[388699100,1759321841868,-500.0,0.00019973,2]
[388699101,1759321841880,-500.0,0.00019973,2]
[388699102,1759321841890,-502.61971287,0.00019973,2]
[388699103,1759321841900,-22685.86219106,0.00019975,2]
[388699104,1759321841911,-920.0,0.00019997,2]
[388699105,1759321841921,-193.74356,0.00019997,2]
[388699106,1759321841931,-151.0,0.00019998,2]
[388699107,1759321841941,-500.0,0.0002,2]
[388699108,1759321841951,-575.41,0.0002,2]
[388699109,1759321841962,-500.0,0.0002,2]
[388699110,1759321841973,-520.0,0.0002,3]
[388699111,1759321841983,-732.69,0.0002,2]
[388699112,1759321841994,-500.0,0.0002,2]
[388699113,1759321842004,-502.46,0.0002,2]
[388699114,1759321842014,-259.8863966,0.0002,2]
[388699115,1759321842025,-500.0,0.0002,2]
[388699116,1759321842035,-500.0,0.0002,2]
[388699117,1759321842046,-500.0,0.0002,2]
[388699118,1759321842055,-500.0,0.0002,2]
[388699119,1759321842066,-500.0,0.0002,2]
[388699120,1759321842075,-500.0,0.0002,2]
[388699121,1759321842086,-500.0,0.0002,2]
[388699122,1759321842096,-500.0,0.0002,2]
[388699123,1759321842106,-500.0,0.0002,2]
[388699124,1759321842115,-500.0,0.0002,2]
[388699125,1759321842125,-500.0,0.0002,2]
[388699126,1759321842135,-540.44,0.0002,2]
[388699127,1759321842145,-500.0,0.0002,2]
[388699128,1759321842155,-500.0,0.0002,2]
[388699129,1759321842164,-1093.76,0.0002,2]
[388699130,1759321842174,-500.0,0.0002,2]
[388699131,1759321842184,-500.0,0.0002,2]
[388699132,1759321842194,-500.0,0.0002,2]
[388699133,1759321842204,-653.65,0.0002,2]
[388699134,1759321842215,-500.0,0.0002,2]
[388699135,1759321842225,-500.0,0.0002,2]
[388699136,1759321842235,-775.98,0.0002,2]
[388699137,1759321842244,-500.0,0.0002,2]
[388699138,1759321842254,-726.09,0.0002,2]
[388699139,1759321842264,-580.53,0.0002,2]
[388699140,1759321842275,-500.0,0.0002,2]
[388699141,1759321842284,-500.0,0.0002,2]
[388699142,1759321842294,-580.83299751,0.0002,2]
[388699143,1759321842303,-214.34462039,0.0002,2]
[388699144,1759321842312,-769.46,0.0002,2]
[388699145,1759321842323,-1943.96,0.0002,2]
[388699146,1759321842332,-500.0,0.0002,2]
[388699147,1759321842341,-500.0,0.0002,2]
[388699148,1759321842351,-612.02,0.0002,2]
[388699149,1759321842361,-969.0,0.0002,2]
[388699150,1759321842371,-763.2,0.0002,2]
[388699151,1759321842381,-500.0,0.0002,2]
[388699152,1759321842391,-662.1,0.0002,2]
[388699153,1759321842400,-500.0,0.0002,2]
[388699154,1759321842411,-500.0,0.0002,2]
[388699155,1759321842421,-1161.75,0.0002,2]
[388699156,1759321842430,-1820.64,0.0002,2]
[388699157,1759321842440,-711.47,0.0002,2]
[388699158,1759321842450,-688.73,0.0002,2]
[388699159,1759321842460,-1119.87,0.0002,2]
[388699160,1759321842471,-695.1,0.0002,2]
[388699161,1759321842482,-557.33,0.0002,2]
[388699162,1759321842494,-2140.28,0.0002,2]
[388699163,1759321842656,-914.94,0.0002,2]
[388699164,1759321842667,-716.76,0.0002,2]
[388699165,1759321842676,-500.0,0.0002,2]
[388699166,1759321842686,-500.0,0.0002,2]
[388699167,1759321842696,-500.0,0.0002,2]
[388699168,1759321842706,-500.0,0.0002,2]
[388699169,1759321842716,-1047.55,0.0002,2]
[388699170,1759321842725,-500.0,0.0002,2]
[388699171,1759321842735,-2079.09,0.0002,2]
[388699172,1759321842744,-816.71,0.0002,2]
[388699173,1759321842754,-500.0,0.0002,2]
[388699174,1759321842764,-500.0,0.0002,2]
[388699175,1759321842774,-580.58784574,0.0002,2]
[388699176,1759321842784,-1092.96,0.0002,2]
[388699177,1759321842793,-500.0,0.0002,2]
[388699178,1759321842805,-500.0,0.0002,2]
[388699179,1759321842816,-758.83,0.0002,2]
[388699180,1759321842826,-583.79,0.0002,2]
[388699181,1759321842835,-500.0,0.0002,2]
[388699182,1759321842850,-636.07,0.0002,2]
[388699183,1759321842859,-500.0,0.0002,2]
[388699184,1759321842869,-500.0,0.0002,2]
[388699185,1759321842879,-500.0,0.0002,2]
[388699187,1759321842890,-500.0,0.0002,2]
[388699188,1759321842899,-500.0,0.0002,2]
[388699189,1759321842908,-2835.74,0.0002,2]
[388699190,1759321842920,-597.08,0.0002,2]
[388699191,1759321842927,-500.0,0.0002,2]
[388699192,1759321842936,-231.529286,0.0002,2]
[388699193,1759321842946,-500.0,0.0002,2]
[388699194,1759321842956,-604.04,0.0002,2]
[388699195,1759321842966,-813.89,0.0002,2]
[388699196,1759321842976,-500.0,0.0002,2]
[388699197,1759321842985,-1919.86,0.0002,2]
[388699198,1759321842994,-500.0,0.0002,2]
[388699199,1759321843004,-2845.23,0.0002,2]
[388699200,1759321843014,-520.36,0.0002,2]
[388699201,1759321843025,-594.37,0.0002,2]
[388699202,1759321843034,-500.0,0.0002,2]